Entity ,Pay date,Expense Type(T),Expense Area(T),Supplier(T),Transaction Number,Amount,Description
NS&I,24/03/2021,Unitary fee - Outsource partner,Operational Assurance,Atos IT Services UK Ltd,4018234,"3,286,903.56",Unitary service charge - March 2021
NS&I,17/03/2021,Demand-linked costs - Outsource partner,Delivery & Monitoring,Atos IT Services UK Ltd,4018165,"2,590,110.00",Demand link service charge- February 2021
NS&I,31/03/2021,Project costs - Outsource partner,Programme Delivery,Atos IT Services UK Ltd,4018340,"1,718,818.00",Strategic IT work investigation costs
NS&I,31/03/2021,Project costs - Outsource partner,Programme Delivery,Atos IT Services UK Ltd,4018344,"1,640,591.00",Strategic IT work investigation costs
NS&I,24/03/2021,Project costs - Outsource partner,Programme Delivery,Atos IT Services UK Ltd,4018223,"1,431,049.00",IT project delivery costs
NS&I,17/03/2021,Unitary fee - Outsource partner,B2B Government Payment Services,Atos IT Services UK Ltd,4018143,"1,290,844.08",Tax-free childcare service charges - March 2021
NS&I,31/03/2021,Maintenance and running costs - Outsource partner,Operational Assurance,Atos IT Services UK Ltd,4018291,"1,195,105.00",Business� continuity strategy
NS&I,31/03/2021,Project costs - Outsource partner,Programme Delivery,Atos IT Services UK Ltd,4018311,"1,193,191.00",Strategic IT work investigation costs
NS&I,31/03/2021,Project costs - Outsource partner,Programme Delivery,Atos IT Services UK Ltd,4018307,"1,087,207.00",Strategic IT work investigation costs
NS&I,24/03/2021,Project costs - Outsource partner,Programme Delivery,Atos IT Services UK Ltd,4018222,"1,080,730.00",Strategic IT work investigation costs
NS&I,31/03/2021,Unitary fee - Outsource partner,B2B Government Payment Services,Atos IT Services UK Ltd,4018142,"642,830.13",Help to save service charges - March 2021
NS&I,24/03/2021,Project costs - Outsource partner,Programme Delivery,Atos IT Services UK Ltd,4018190,"500,000.00",Enhancing delivery channels
NS&I,31/03/2021,Project costs - Outsource partner,Programme Delivery,Atos IT Services UK Ltd,4018341,"500,000.00",Enhancing delivery channels
NS&I,29/03/2021,Project costs - Outsource partner,Programme Delivery,Atos IT Services UK Ltd,4018286,"447,400.00",Strategic IT work investigation costs
NS&I,17/03/2021,Advertising and production,Marketing Communications,Manning Gottlieb OMD,4018187,"358,721.68",Cost of Marketing Campaigns
NS&I,29/03/2021,Professional services - Legal,Commercial and Legal,PA Consulting Services Ltd,4018287,"343,061.29",Strategic business advice and support
NS&I,17/03/2021,Professional services - Legal,Commercial and Legal,PA Consulting Services Ltd,4018186,"336,206.26",Strategic business advice and support
NS&I,29/03/2021,Project costs - Outsource partner,Programme Delivery,Atos IT Services UK Ltd,4018257,"315,083.00",programme management cost March 2021
NS&I,17/03/2021,Unitary fee - Outsource partner,B2B Government Payment Services,Atos IT Services UK Ltd,4018147,"335,174.38",Help to buy service charges - March 2021
NS&I,31/03/2021,Project costs - Outsource partner,Programme Delivery,Atos IT Services UK Ltd,4018342,"250,000.00",Enhancing delivery channels
NS&I,17/03/2021,Unitary fee - Outsource partner,B2B Government Payment Services,Atos IT Services UK Ltd,4018144,"238,331.41",30 hours free childcare Service Charges - March 2021
NS&I,10/03/2021,Project costs - Outsource partner,Programme Delivery,Atos IT Services UK Ltd,4018061,"190,050.00",Enhancing delivery channels
NS&I,24/03/2021,Project costs - Outsource partner,Programme Delivery,Atos IT Services UK Ltd,4018198,"190,050.00",Enhancing delivery channels
NS&I,29/03/2021,Unitary fee - Outsource partner,B2B Government Payment Services,Atos IT Services UK Ltd,4018253,"123,459.21",Court Funds Office Service Charges  February 2021
NS&I,24/03/2021,Maintenance and running costs - Outsource partner,Delivery & Monitoring,Atos IT Services UK Ltd,4018226,"102,230.00", Project recurring costs
NS&I,28/03/2021,Project costs - Outsource partner,Programme Delivery,Atos IT Services UK Ltd,4018086,"99,393.00",Enhancing delivery channels
NS&I,17/03/2021,Project costs - Outsource partner,Programme Delivery,Atos IT Services UK Ltd,4018141,"99,055.00",Security enhancements
NS&I,29/03/2021,Project costs - Outsource partner,Programme Delivery,Atos IT Services UK Ltd,4018255,"95,950.00",Enhancing delivery channels
NS&I,24/03/2021,Maintenance and running costs - Outsource partner,IS & Information Assurance,Atos IT Services UK Ltd,4018191,"90,971.00",Delivering IT orchestration improvements March 2021
NS&I,24/03/2021,Project costs - Outsource partner,Programme Delivery,Atos IT Services UK Ltd,4018204,"89,531.00",Improvements to reporting of customer account information
NS&I,29/03/2021,Unitary fee - Outsource partner,B2B Government Payment Services,Atos IT Services UK Ltd,4018279,"85,591.56",30 hours free childcare Service Charges - February 2021
NS&I,29/03/2021,Unitary fee - Outsource partner,B2B Government Payment Services,Atos IT Services UK Ltd,4018282,"85,591.56",Tax-free childcare service charges - Februay 2021
NS&I,10/03/2021,Maintenance and running costs - Outsource partner,Business Insight,Atos IT Services UK Ltd,4018150,"84,011.00",Data warehouse development work
NS&I,29/03/2021,Maintenance and running costs - Outsource partner,Business Insight,Atos IT Services UK Ltd,4018275,"84,011.00",Data warehouse development work
NS&I,24/03/2021,Market research,Market Intelligence & Research,Discovery Research Ltd.,4018235,"80,034.00",Qualitative research costs
NS&I,10/03/2021,Unitary fee - Outsource partner,B2B Government Payment Services,Atos IT Services UK Ltd,4018074,"79,724.18",Tax-free childcare service charges - January 2021
NS&I,10/03/2021,Unitary fee - Outsource partner,B2B Government Payment Services,Atos IT Services UK Ltd,4018079,"79,724.18",30 hours free childcare Service Charges - January 2021
NS&I,24/03/2021,Project costs - Outsource partner,Programme Delivery,Atos IT Services UK Ltd,4018210,"73,737.00",New corporate communications facility
NS&I,29/03/2021,Maintenance and running costs - Outsource partner,Delivery & Monitoring,Atos IT Services UK Ltd,4018262,"69,200.00",Strategic customers Research
NS&I,24/03/2021,Project costs - Outsource partner,Programme Delivery,Atos IT Services UK Ltd,4018243,"62,954.00",Customer journey improvements
NS&I,17/03/2021,Project costs - Outsource partner,Programme Delivery,Atos IT Services UK Ltd,4018155,"55,283.00", Project recurring costs
NS&I,29/03/2021,Professional services - Other,Operational Assurance,HMRC (Government Banking Service),4018271,"50,391.37",HMRC GBS Management Fees
NS&I,10/03/2021,Unitary fee - Outsource partner,B2B Government Payment Services,Atos IT Services UK Ltd,4018078,"48,306.11",Tax-free childcare service charges - January 2021
NS&I,24/03/2021,Maintenance and running costs - Outsource partner,Design & Validation,Atos IT Services UK Ltd,4018179,"47,600.00",Enhancing online customer experience
NS&I,24/03/2021,Advertising and production,Intermediary Relationships,Manning Gottlieb OMD,4018249,"46,695.45",Digital development work
NS&I,29/03/2021,Maintenance and running costs - Outsource partner,Commercial and Legal,Atos IT Services UK Ltd,4018258,"45,000.00",Product development 
NS&I,29/03/2021,Unitary fee - Outsource partner,B2B Government Payment Services,Atos IT Services UK Ltd,4018283,"44,637.31",Tax-free childcare service charges - January 2021
NS&I,24/03/2021,Project costs - Outsource partner,Programme Delivery,Atos IT Services UK Ltd,4018242,"41,969.00",Customer journey improvements
NS&I,17/03/2021,Project costs - Outsource partner,Programme Delivery,Atos IT Services UK Ltd,4018140,"39,622.00",Security enhancements
NS&I,17/03/2021,Unitary fee - Outsource partner,B2B Government Payment Services,Atos IT Services UK Ltd,4018148,"46,865.42",Help to buy service charges - March  2021
NS&I,28/03/2021,Professional services - Other,Complaints Managment,Financial Ombudsman Services,4018100,"35,100.00",Case Fee Charges March 2021
NS&I,10/03/2021,Unitary fee - Outsource partner,B2B Government Payment Services,Atos IT Services UK Ltd,4018080,"34,610.62",Tax-free childcare service charges - January 2021
NS&I,10/03/2021,Professional services - Projects,Programme Delivery,Bloom Procurement Services Limited,4018132,"33,000.00",Change process improvement work
NS&I,28/03/2021,Project costs - Outsource partner,Programme Delivery,Atos IT Services UK Ltd,4018056,"31,802.00",Enhancements to Premium Bond Prize Checker App
NS&I,28/03/2021,Maintenance and running costs - Outsource partner,IS & Information Assurance,Atos IT Services UK Ltd,4018077,"31,793.00",Delivering IT orchestration improvements February 2021
NS&I,29/03/2021,Project costs - Outsource partner,Programme Delivery,Atos IT Services UK Ltd,4018276,"29,716.00",Security enhancements
NS&I,10/03/2021,Project costs - Outsource partner,Programme Delivery,Atos IT Services UK Ltd,4018108,"28,539.00",Enhancing delivery channels
NS&I,24/03/2021,Project costs - Outsource partner,Programme Delivery,Atos IT Services UK Ltd,4018209,"27,759.00",Information systems testing 
NS&I,10/03/2021,Advertising agency costs,Marketing Communications,Unlimited Group United Ltd,4018164,"27,490.91",Cost of Marketing Campaigns
NS&I,28/03/2021,Professional services - Legal,Compliance & Delivery,Government Legal Department,4018112,"27,450.00",Quarterly legal services Q4
NS&I,10/03/2021,Maintenance and running costs - Outsource partner,Intermediary Relationships,Atos IT Services UK Ltd,4018107,"27,028.00",FA portal website service costs
NS&I,29/03/2021,Maintenance and running costs - Outsource partner,Intermediary Relationships,Atos IT Services UK Ltd,4018270,"27,028.00",FA portal website service costs
NS&I,24/03/2021,Demand-linked costs - Outsource partner,Delivery & Monitoring,Atos IT Services UK Ltd,4018184,"25,901.00",Demand link service charge-  February 2021
NS&I,29/03/2021,Professional services - Other,Security & Business Continuity,Atos IT Services UK Ltd,4018254,"25,496.00",Business� continuity services for London Office 
NS&I,29/03/2021,Professional services - Projects,Programme Delivery,Bloom Procurement Services Limited,4018289,"25,200.00",Change process improvement work
NS&I,24/03/2021,Software/ Licence fees (non-capital),Brand,Atos IT Services UK Ltd,4018178,"25,133.00",Brand development work
NS&I,28/03/2021,Training and development costs,Learning & Development,University of Oxford SAID,4018072,"25,000.00",Learning and Development costs
=SUM(c2:c68),,,,,,"23,601,040.67",
